bitfinex-derivatives/quotes_BNBF0:USTF0_20250425
["timestamp","ask_amount","ask_price","bid_price","bid_amount"]
[1745575608730,2.57955987,607.08,605.22,0.30262011]
[1745575608925,1.40320677,607.07,605.23,0.30262011]
[1745575609125,1.40320677,607.06,605.24,0.30262011]
[1745575609326,2.57955987,607.05,605.25,0.30262011]
[1745575609533,1.40320677,607.04,605.26,0.30262011]
[1745575609728,1.40320677,607.03,605.27,0.30262011]
[1745575610033,1.40320677,607.02,605.28,0.302615]
[1745575610233,1.40320677,607.01,605.29,0.302615]
[1745575610430,2.57955987,607.0,605.3,0.302615]
[1745575610633,1.40320677,606.99,605.31,0.302615]
[1745575610835,1.40320677,606.98,605.32,0.302615]
[1745575611033,1.40320677,606.97,605.33,0.302615]
[1745575611235,1.40320677,606.96,605.34,0.302615]
[1745575611529,1.40320677,606.95,605.35,1.00769101]
[1745575611733,1.40320677,606.94,605.36,1.00769101]
[1745575611934,1.40320677,606.93,605.37,1.00769101]
[1745575612135,1.40320677,606.92,605.38,0.302615]
[1745575612334,2.57955987,606.91,605.39,0.302615]
[1745575612534,1.40320677,606.9,605.4,0.302615]
[1745575612835,1.1763531,606.91,605.41,0.302615]
[1745575613034,1.1763531,606.89,605.42,0.30258813]
[1745575613235,1.1763531,606.89,605.43,1.00760957]
[1745575613435,1.1763531,606.89,605.44,1.00760957]
[1745575613630,1.1763531,606.89,605.45,0.30258813]
[1745575613836,1.22946076,610.09,605.46,0.30258813]
[1745575614032,1.39954283,610.08,605.47,0.30258813]
[1745575614335,1.39954283,610.07,605.48,0.30258813]
[1745575614536,1.39954283,610.06,605.49,0.30258813]
[1745575614736,1.39954283,610.05,605.5,0.30258813]
[1745575614935,1.39954283,610.04,605.51,0.30258813]
[1745575615131,1.39954283,610.03,605.52,0.30258813]
[1745575615335,1.39954283,610.02,605.53,0.30258813]
[1745575615535,1.39954283,610.01,605.54,0.30258813]
[1745575615837,1.39954283,610.0,605.55,0.30258813]
[1745575616038,2.55501364,609.99,605.56,0.30258813]
[1745575616233,1.39954283,609.98,605.57,0.30258813]
[1745575616439,1.39954283,609.97,605.58,0.30258813]
[1745575616738,1.39954283,609.96,605.59,0.30258813]
[1745575616938,2.55501364,609.95,605.6,0.30258813]
[1745575617131,1.39954283,609.94,605.61,0.30258813]
[1745575617335,2.55443216,609.93,605.62,0.30258813]
[1745575617532,1.39896135,609.92,605.63,0.30258813]
[1745575617833,2.55443216,609.91,605.64,0.30258813]
[1745575618034,1.39896135,609.9,605.65,0.30258813]
[1745575618238,1.39896135,609.89,605.66,0.30258813]
[1745575618439,1.39896135,609.88,605.67,0.30258813]
[1745575618636,2.55443216,609.87,605.68,0.30258813]
[1745575618832,1.39896135,609.86,605.69,0.30258813]
[1745575619039,2.55443216,609.85,605.7,0.3025891]
[1745575619241,1.39890989,609.84,605.71,0.3025891]
[1745575619439,1.39890989,609.83,605.72,0.3025891]
[1745575619639,2.5543807,609.82,605.73,0.3025891]
[1745575619941,2.5543807,609.81,605.74,0.3025891]
[1745575620141,1.39890989,609.8,605.75,0.3025891]
[1745575620442,1.39890989,609.79,605.76,0.3025891]
[1745575620635,2.5543807,609.78,605.76,0.3025891]
[1745575620837,2.5543807,609.77,605.77,0.3025891]
[1745575621038,1.39890989,609.76,605.78,0.3025891]
[1745575621238,1.39890989,609.75,605.79,0.3025891]
[1745575621440,1.39890989,609.74,605.8,0.3025891]
[1745575621741,1.39890989,609.74,605.62,1.04543387]
[1745575621742,1.39890989,609.73,605.81,0.3025891]
[1745575622040,1.39890989,609.72,605.82,0.3025891]
[1745575622234,1.39890989,609.71,605.83,0.3025891]
[1745575622433,1.39890989,609.7,605.84,0.3025891]
[1745575622638,1.39890989,609.69,605.85,0.3025891]
[1745575622835,1.39890989,609.68,605.86,0.3025891]
[1745575623036,1.22946076,609.54,606.11,1.04543387]
[1745575623235,1.39890989,609.53,606.12,0.3025891]
[1745575623437,2.5543807,609.52,606.12,0.3025891]
[1745575623638,1.39890989,609.51,606.12,0.3025891]
[1745575623838,1.39890989,609.5,606.12,0.3025891]
[1745575624136,2.5543807,609.49,606.12,0.3025891]
[1745575624338,1.39890989,609.48,606.12,0.3025891]
[1745575624541,1.39890989,609.47,606.12,0.3025891]
[1745575624737,1.39890989,609.46,606.18,1.04543387]
[1745575624944,2.5543807,609.45,606.19,0.3025891]
[1745575625143,1.39890989,609.44,606.19,0.3025891]
[1745575625343,1.39890989,609.43,606.19,0.3025891]
[1745575625536,2.5543807,609.42,606.19,0.3025891]
[1745575625737,1.39890989,609.41,606.19,0.3025891]
[1745575625937,1.39890989,609.4,606.18,1.04543387]
[1745575626139,1.39890989,609.39,606.19,0.30254965]
[1745575626342,1.39890989,609.38,606.19,0.30254965]
[1745575626647,1.39890989,609.37,606.19,0.30254965]
[1745575626844,2.5543807,609.36,606.2,0.30254965]
[1745575627039,1.39890989,609.35,606.21,0.30254965]
[1745575627243,1.39890989,609.34,606.22,0.30254965]
[1745575627447,1.39890989,609.33,606.15,0.30254965]
[1745575627640,1.39890989,609.32,606.15,0.30254965]
[1745575627843,2.5543807,609.31,606.15,0.30254965]
[1745575628045,1.39890989,609.3,606.15,0.30254965]
[1745575628241,2.5543807,609.29,606.16,0.30254965]
[1745575628447,1.39890989,609.28,606.17,0.30254965]
[1745575628646,1.15547081,609.29,606.18,0.30254965]
[1745575628848,2.55474364,609.28,606.19,0.30254965]
[1745575629044,1.39927283,609.27,606.19,1.04543387]
[1745575629240,1.39927283,609.26,606.2,0.30250058]
[1745575629443,1.39927283,609.25,606.21,0.30250058]
[1745575629644,1.15547081,609.26,606.22,0.30250058]
[1745575629645,1.39927283,609.24,606.22,0.30250058]
[1745575629943,1.39944449,609.23,606.23,0.30250058]
[1745575630141,2.5549153,609.22,606.24,0.30250058]
[1745575630342,2.5549153,609.21,606.25,0.30250058]
[1745575630546,1.39944449,609.2,606.19,1.04543387]
[1745575630748,1.39944449,609.19,606.2,0.30234898]
[1745575630942,1.39944449,609.18,606.21,0.30234898]
[1745575631141,1.39944449,609.17,606.22,0.30234898]
[1745575631342,2.5549153,609.16,606.23,0.30234898]
[1745575631545,1.39944449,609.15,606.24,0.30234898]
[1745575631745,1.39944449,609.14,606.25,0.30234898]
[1745575631946,2.5549153,609.13,606.26,0.30234898]
[1745575632142,1.39944449,609.12,606.27,0.30234898]
[1745575632342,1.15547081,609.13,606.28,0.30234898]
[1745575632647,1.4000754,609.12,606.56,1.04543387]
[1745575632847,2.55554621,609.11,606.57,0.30234898]
[1745575633047,1.4000754,609.1,606.57,0.30234898]
[1745575633244,1.39996059,609.09,606.57,0.30234898]
[1745575633445,1.39996059,609.08,606.57,0.30234898]
[1745575633647,1.39996059,609.07,606.58,0.30247974]
[1745575633849,1.39996059,609.06,606.57,0.30247974]
[1745575634049,1.39996059,609.05,606.58,0.30247974]
[1745575634248,1.39996059,609.04,606.57,0.30247974]
[1745575634547,2.5554314,609.03,606.58,0.30247974]
[1745575634749,2.5554314,609.02,606.59,0.30247974]
[1745575634949,2.5554314,609.01,606.6,0.30247974]
[1745575635143,1.39996059,609.0,606.18,0.30247974]
[1745575635347,1.39996059,608.99,606.19,0.30247974]
[1745575635549,1.39996059,608.98,606.2,0.30247974]
[1745575635747,1.39996059,608.97,606.18,0.30247974]
[1745575635947,2.5554314,608.96,606.19,0.30247974]
[1745575636147,1.39996059,608.95,606.18,0.30247974]
[1745575636349,1.39996059,608.94,606.19,0.30247974]
[1745575636649,1.39996059,608.93,606.2,0.30252592]
[1745575636851,1.39996059,608.92,606.21,0.30252592]
[1745575637049,2.5554314,608.91,606.22,0.30252592]
[1745575637251,1.39996059,608.9,606.23,0.30252592]
[1745575637549,2.5554314,608.89,606.24,0.30252592]
[1745575637746,1.39996059,608.88,606.19,0.30252592]
[1745575637949,1.39996059,608.88,606.18,0.28651172]
[1745575637950,2.5554314,608.87,606.2,0.30252592]
[1745575638150,1.39996059,608.86,606.19,0.30252592]
[1745575638348,1.39996059,608.85,606.2,0.30252592]
[1745575638649,1.39996059,608.84,606.21,0.30252592]
[1745575638850,2.5554314,608.83,606.19,0.30252592]
[1745575639049,1.39996059,608.82,606.2,0.30252592]
[1745575639249,1.39996059,608.81,606.19,0.30252592]
[1745575639445,1.39996059,608.8,606.21,0.30252592]
[1745575639646,1.15547081,608.81,606.22,0.30252592]
[1745575639647,1.39996059,608.79,606.22,0.30252592]
[1745575639848,2.5554314,608.78,606.18,0.2865943]
[1745575640049,1.39996059,608.77,606.19,0.30252592]
[1745575640249,1.39996059,608.76,606.19,0.30252592]
[1745575640445,1.39996059,608.75,606.19,0.30252592]
[1745575640649,2.5554314,608.74,606.19,0.30252592]
[1745575640849,1.39996059,608.73,606.19,0.30252592]
[1745575641050,1.39996059,608.72,606.19,0.30252592]
[1745575641250,1.39996059,608.71,606.19,0.30252592]
[1745575641550,1.39996059,608.7,606.19,0.30252592]
[1745575641748,2.5554314,608.69,606.19,0.30252592]
[1745575641949,1.39996059,608.68,606.19,0.30252592]
[1745575642146,2.5554314,608.67,606.19,0.30252592]
[1745575642347,1.39996059,608.66,606.19,0.30252592]
[1745575642550,1.39996059,608.65,606.19,0.30252592]
[1745575642748,1.39996059,608.64,606.18,0.28658604]
[1745575643050,1.39996059,608.63,606.19,0.30263179]
[1745575643248,1.39996059,608.62,606.19,0.30263179]
[1745575643449,1.39996059,608.61,606.19,0.30263179]
[1745575643752,1.15547081,608.63,606.19,0.30263179]
[1745575643753,2.5554314,608.6,606.19,0.30263179]
[1745575643948,1.39996059,608.59,606.19,0.30263179]
[1745575644147,1.39996059,608.58,606.19,0.30263179]
[1745575644353,2.5554314,608.57,606.2,0.30264059]
[1745575644649,1.39996059,608.56,606.21,0.30264059]
[1745575644854,1.39996059,608.55,606.19,0.30264059]
[1745575645054,1.39996059,608.54,606.19,0.30264059]
[1745575645354,2.56727164,608.53,606.19,0.30264059]
[1745575645551,1.41180083,608.52,606.19,0.30264059]
[1745575645748,1.41180083,608.51,606.19,0.30264059]
[1745575646054,2.56727164,608.5,606.2,0.30265827]
[1745575646249,1.41180083,608.49,606.19,0.30265827]
[1745575646452,2.56727164,608.48,606.19,0.30265827]
[1745575646650,1.41180083,608.47,606.19,0.30265827]
[1745575646952,2.56727164,608.46,606.19,0.30265827]
[1745575647252,1.41180083,608.45,606.19,0.30265827]
[1745575647452,2.56727164,608.44,606.19,0.30265827]
[1745575647653,1.41180083,608.43,606.19,0.30265827]
[1745575647854,2.56727164,608.42,606.19,0.30265827]
[1745575648052,1.41180083,608.41,606.19,0.30265827]
[1745575648258,1.41180083,608.4,606.19,0.30265827]
[1745575648453,1.41180083,608.39,606.19,0.30265827]
[1745575648651,1.41180083,608.38,606.2,0.30265827]
[1745575648955,1.41768504,608.37,606.21,0.30265827]
[1745575649258,1.41768504,608.36,606.18,0.28667812]
[1745575649453,1.41768504,608.35,606.18,0.28667812]
[1745575649659,1.41768504,608.34,606.18,0.28667812]
[1745575649962,2.57315585,608.33,606.18,0.28667812]
[1745575650158,1.41768504,608.32,606.18,0.28667812]
[1745575650359,2.57315585,608.31,606.19,0.30267968]
[1745575650655,2.57315585,608.3,606.19,0.30267968]
[1745575650860,1.41768504,608.29,606.18,0.28667812]
[1745575651055,1.41768504,608.28,606.18,0.28667812]
[1745575651259,2.57315585,608.27,606.18,0.28667812]
[1745575651460,1.41768504,608.26,605.88,1.04543387]
[1745575651661,1.41768504,608.25,605.89,0.30268199]
[1745575651860,2.57315585,608.24,606.18,0.28668874]
[1745575652059,1.41768504,608.23,605.73,1.04543387]
[1745575652259,2.57315585,608.22,605.74,0.30266469]
[1745575652454,1.41768504,608.21,605.74,0.30266469]
[1745575652661,1.41768504,608.2,605.74,0.30266469]
[1745575652862,1.41768504,608.19,605.74,0.30266469]
[1745575653059,1.41768504,608.18,605.74,0.30266469]
[1745575653259,2.57315585,608.17,605.75,0.28671]
[1745575653459,2.57315585,608.16,605.76,0.30266469]
[1745575653664,1.41768504,608.15,605.76,0.30266469]
[1745575653864,1.15547081,608.16,605.76,0.30266469]
[1745575653865,1.41768504,608.14,605.76,0.30266469]
[1745575654062,2.57315585,608.13,605.76,0.30266469]
[1745575654266,1.41817386,608.12,605.76,0.30266469]
[1745575654565,2.57364467,608.11,605.76,0.30266469]
[1745575654864,2.57364467,608.1,605.76,0.30266469]
[1745575655065,1.41817386,608.09,605.77,0.30268599]
[1745575655264,1.41817386,608.08,605.76,0.30268599]
[1745575655464,2.57364467,608.07,605.77,0.30268599]
[1745575655666,1.41817386,608.06,605.76,0.30268599]
[1745575655865,1.41817386,608.05,605.77,0.30268599]
[1745575656063,1.41817386,608.05,605.75,0.28671]
[1745575656064,1.41817386,608.04,605.76,0.30268599]
[1745575656263,1.41817386,608.03,605.77,0.30268599]
[1745575656469,1.41817386,608.02,605.76,0.30268599]
[1745575656662,1.41817386,608.01,605.77,0.30268599]
[1745575656867,2.57364467,608.0,605.78,0.30268599]
[1745575657067,1.41817386,607.99,605.79,0.30268599]
[1745575657267,1.41817386,607.98,605.76,0.30268599]
[1745575657569,2.57364467,607.97,605.77,0.30268599]
[1745575657767,1.41704388,607.96,605.78,0.30268599]
[1745575657965,1.41704388,607.95,605.75,0.28671]
[1745575658163,2.57251469,607.94,605.76,0.30276975]
[1745575658364,1.41704388,607.93,605.76,0.30276975]
[1745575658665,2.57251469,607.92,605.76,0.30276975]
[1745575658872,1.41704388,607.91,605.76,0.30276975]
[1745575659071,1.41704388,607.9,605.76,0.30276975]
[1745575659272,2.57251469,607.89,605.76,0.30276975]
[1745575659467,1.41704388,607.88,605.75,0.28671]
[1745575659672,1.41704388,607.87,605.76,0.30277848]
[1745575659972,2.57251469,607.86,605.76,0.30277848]
[1745575660171,2.57251469,607.85,605.75,0.28671]
[1745575660366,1.41704388,607.84,605.75,0.28671]
[1745575660565,1.41704388,607.83,605.75,0.28671]
[1745575660766,2.57251469,607.82,605.75,0.28671]
[1745575660967,1.41704388,607.81,605.76,0.30278355]
[1745575661272,1.41704388,607.8,605.76,0.30278355]
[1745575661470,2.57128602,607.79,605.77,0.3027792]
[1745575661672,1.41581521,607.78,605.76,0.3027792]
[1745575661868,2.57128602,607.77,605.77,0.3027792]
[1745575662171,2.57128602,607.76,605.78,0.3027792]
[1745575662369,1.41581521,607.75,605.76,0.3027792]
[1745575662570,1.41581521,607.74,605.76,0.3027792]
[1745575662769,2.57128602,607.73,605.76,0.3027792]
[1745575663069,2.57128602,607.72,605.76,0.3027792]
[1745575663273,1.41581521,607.71,605.76,0.3027792]
[1745575663572,1.15547081,607.72,605.76,0.3027792]
[1745575663573,2.57128602,607.7,605.76,0.3027792]
[1745575663767,1.23926831,608.98,605.77,0.3027792]
[1745575663768,2.57128602,607.69,605.77,0.3027792]
[1745575663970,1.41581521,607.68,605.78,0.3027792]
[1745575664169,1.41581521,607.67,605.79,0.3027792]
[1745575664369,1.41581521,607.66,605.76,0.3027792]
[1745575664674,1.41581521,607.65,605.76,0.3027792]
[1745575664973,2.57128602,607.64,605.76,0.3027792]
[1745575665174,1.41581521,607.63,605.76,0.3027792]
[1745575665374,2.57128602,607.62,605.76,0.3027792]
[1745575665673,1.41581521,607.61,605.76,0.3027792]
[1745575665868,1.41581521,607.6,605.76,0.3027792]
[1745575666169,2.57128602,607.59,605.76,0.3027792]
[1745575666373,1.41581521,607.58,605.76,0.3027792]
[1745575666574,2.57128602,607.57,605.76,0.3027792]
[1745575666776,1.41581521,607.56,605.76,0.3027792]
[1745575666968,1.41581521,607.55,605.76,0.3027792]
[1745575667172,1.41581521,607.54,605.76,0.3027792]
[1745575667476,1.41581521,607.53,605.76,0.3027792]
[1745575667675,1.41581521,607.52,605.76,0.3027792]
[1745575667869,1.41581521,607.51,605.76,0.3027792]
[1745575668073,2.57128602,607.5,605.77,0.3027792]
[1745575668372,1.41581521,607.49,605.78,0.3027792]
[1745575668570,1.41581521,607.48,605.79,0.3027792]
[1745575668770,1.41581521,607.47,605.8,0.3027792]
[1745575668972,1.41581521,607.46,605.76,0.3027792]
[1745575669170,1.41581521,607.45,605.77,0.3027792]
[1745575669377,1.41581521,607.44,605.76,0.3027792]
[1745575669569,1.41581521,607.43,605.77,0.3027792]
[1745575669773,1.41581521,607.42,605.33,0.3027792]
[1745575669973,1.41581521,607.41,605.75,0.28680216]
[1745575670173,1.41581521,607.4,605.76,0.3027792]
[1745575670373,1.41581521,607.4,605.77,0.3027792]
[1745575670374,1.41581521,607.39,605.77,0.3027792]
[1745575670575,1.41581521,607.38,605.78,0.3027792]
[1745575670877,2.57128602,607.37,605.81,1.04543387]
[1745575671074,1.41581521,607.36,605.82,0.3027792]
[1745575671274,1.41581521,607.35,605.82,0.3027792]
[1745575671475,1.41581521,607.34,605.82,0.3027792]
[1745575671675,1.41581521,607.33,605.81,1.04543387]
[1745575671875,2.57128602,607.32,605.82,0.30270407]
[1745575672175,1.41581521,607.31,605.82,0.30270407]
[1745575672376,1.41581521,607.3,605.82,0.30270407]
[1745575672574,1.41581521,607.29,605.82,0.30270407]
[1745575672777,1.41581521,607.28,605.76,0.30270407]
[1745575673073,2.57128602,607.27,605.78,0.28683762]
[1745575673379,1.41581521,607.26,605.79,0.30272379]
[1745575673574,1.41581521,607.25,605.79,0.30272379]
[1745575673777,1.41581521,607.24,605.79,0.30272379]
[1745575674073,2.57128602,607.23,605.79,0.30272379]
[1745575674278,2.57128602,607.22,605.79,0.30272379]
[1745575674575,2.57128602,607.21,605.79,0.30272379]
[1745575674780,1.41581521,607.2,605.84,1.04543387]
[1745575674979,2.57128602,607.19,605.85,0.30272379]
[1745575675275,1.41581521,607.18,605.85,0.30272379]
[1745575675478,2.57128602,607.17,605.85,0.30272379]
[1745575675781,1.41581521,607.16,605.85,0.30272379]
[1745575676079,2.57128602,607.15,605.85,0.30272379]
[1745575676278,1.41581521,607.14,605.85,0.30272379]
[1745575676479,1.41581521,607.13,605.85,0.30272379]
[1745575676679,2.57128602,607.12,605.85,0.30272379]
[1745575676879,1.41581521,607.11,605.85,0.30272379]
[1745575677081,1.41581521,607.1,605.85,0.30272379]
[1745575677376,2.57128602,607.09,605.85,0.30272379]
[1745575677578,1.41581521,607.08,605.85,0.30272379]
[1745575677779,1.41581521,607.08,605.81,0.28685535]
[1745575677780,1.41581521,607.07,605.86,0.30271607]
[1745575677977,1.41581521,607.06,605.82,0.30271607]
[1745575678186,1.41581521,607.05,605.83,0.30271607]
[1745575678482,1.41581521,607.04,605.84,0.30271607]
[1745575678682,1.41581521,607.03,605.75,0.30271607]
[1745575678883,1.41581521,607.02,605.82,0.28684116]
[1745575679077,1.41581521,607.01,605.83,0.30271607]
[1745575679278,1.41581521,607.0,605.84,0.30265553]
[1745575679479,1.41581521,606.99,605.83,0.30265553]
[1745575679679,1.41509152,606.98,605.84,0.30265553]
[1745575679882,1.41509152,606.97,605.83,0.30265553]
[1745575680079,1.41509152,606.96,605.84,0.30265553]
[1745575680283,2.57056233,606.95,605.95,1.04543387]
[1745575680478,1.41509152,606.94,605.96,0.30265553]
[1745575680679,2.57056233,606.93,605.96,0.30265553]
[1745575680883,2.57056233,606.92,605.96,0.30265553]
[1745575681082,1.41509152,606.91,605.96,0.30265553]
[1745575681283,1.41509152,606.9,605.96,0.30265553]
[1745575681480,2.57056233,606.89,605.96,0.30265553]
[1745575681685,1.41509152,606.88,605.96,0.30265553]
[1745575681885,1.41509152,606.87,605.96,0.30265553]
[1745575682084,1.41509152,606.86,605.96,0.30265553]
[1745575682285,1.41509152,606.85,605.96,0.30265553]
[1745575682583,1.41509152,606.84,606.0,1.04543387]
[1745575682787,1.41509152,606.83,606.01,0.30265553]
[1745575683086,1.41509152,606.82,606.01,0.30265553]
[1745575683282,1.15547081,606.84,606.0,1.04543387]
[1745575683485,1.15547081,606.83,606.01,0.30264919]
[1745575683987,2.5709366,606.82,606.01,0.30264919]
[1745575684184,1.15547081,606.82,606.01,0.30264919]
[1745575684491,1.15547081,606.81,606.01,0.30264919]
[1745575684887,1.15547081,606.8,606.02,0.30264644]
[1745575685188,1.15547081,606.8,606.03,0.30264644]
[1745575685381,2.57111256,606.79,606.01,0.30264644]
[1745575685584,1.41564175,606.78,606.02,0.30264644]
[1745575685782,1.41564175,606.77,606.01,0.30264644]
[1745575686087,1.41564175,606.77,606.0,1.04543387]
[1745575686088,2.57111256,606.76,606.07,1.04543387]
[1745575686286,1.41564175,606.75,606.07,1.04543387]
[1745575686483,2.57111256,606.74,606.07,1.04543387]
[1745575686686,2.57111256,606.73,606.08,0.30277426]
[1745575686986,1.41564175,606.72,606.08,0.30277426]
[1745575687287,1.23926831,608.92,606.08,0.30277426]
[1745575687288,2.57111256,606.71,606.08,0.30277426]
[1745575687588,1.41564175,606.7,606.08,0.30277426]
[1745575687887,1.41564175,606.69,606.08,0.30277426]
[1745575688188,1.15547081,606.68,606.08,0.30277426]
[1745575688388,1.15547081,606.67,606.08,0.30277426]
[1745575688884,1.15547081,606.67,606.09,0.30277426]
[1745575689087,1.15547081,606.66,605.98,0.30277426]
[1745575689289,1.15547081,606.66,605.97,0.28687427]
[1745575689490,1.15547081,606.65,605.98,0.30270043]
[1745575690188,1.23926831,608.97,605.98,0.30270043]
[1745575690388,1.41618646,608.96,605.98,0.30270043]
[1745575690589,2.58691029,608.95,605.98,0.30270043]
[1745575690883,1.41618646,608.94,605.97,0.28687427]
[1745575691089,2.58691029,608.93,605.98,0.30267534]
[1745575691289,1.41618646,608.92,605.98,0.30267534]
[1745575691589,2.58922368,608.91,605.98,0.30267534]
[1745575691888,1.41849985,608.9,605.98,0.30267534]
[1745575692187,2.58922368,608.89,605.98,0.30267534]
[1745575692384,1.41849985,608.88,605.97,0.28687427]
[1745575692585,1.41849985,608.87,605.98,0.30267248]
[1745575692785,1.41849985,608.86,605.98,0.30267248]
[1745575692988,1.41849985,608.85,605.98,0.30267248]
[1745575693288,1.41916213,608.84,605.98,0.30267248]
[1745575693488,2.58988574,608.83,605.98,0.30267248]
[1745575693689,1.41916191,608.82,605.99,0.30267248]
[1745575693989,2.58988574,608.81,606.0,0.30267248]
[1745575694191,1.41916191,608.8,605.98,0.30267248]
[1745575694390,1.41916191,608.79,605.99,0.30267248]
[1745575694589,1.41916191,608.78,605.98,0.30267248]
[1745575694793,1.41916191,608.77,605.99,0.30267248]
[1745575695092,2.58988574,608.76,606.0,0.30267248]
[1745575695291,1.41916191,608.75,605.98,0.30267248]
[1745575695587,2.58988574,608.74,605.99,0.30267036]
[1745575695792,2.58988574,608.73,605.98,0.30267036]
[1745575695987,1.41916191,608.72,605.99,0.30267036]
[1745575696189,2.58988574,608.71,606.0,0.30267036]
[1745575696490,1.41916191,608.7,606.01,0.30267036]
[1745575696690,1.41916191,608.7,605.97,0.28658486]
[1745575696691,1.41916191,608.69,605.98,0.30267036]
[1745575696993,1.41916191,608.68,605.99,0.30266964]
[1745575697291,2.58988574,608.67,606.0,0.30266964]
[1745575697485,1.41916191,608.66,605.98,0.30266964]
[1745575697685,1.41916191,608.65,605.99,0.30266964]
[1745575697884,2.58988574,608.64,606.0,0.30266964]
[1745575698091,1.41916191,608.63,606.01,0.30266964]
[1745575698386,1.41916191,608.62,605.97,0.28658486]
[1745575698586,1.41916191,608.61,605.98,0.30259212]
[1745575698787,1.17072383,608.64,605.98,0.30259212]
[1745575698986,2.59332803,608.63,605.98,0.30259212]
[1745575699192,1.4226042,608.62,605.98,0.30259212]
[1745575699392,2.59332803,608.61,605.98,0.30259212]
[1745575699592,1.4226042,608.6,605.98,0.30259212]
[1745575699795,1.4226042,608.59,605.98,0.30259212]
[1745575699988,1.4226042,608.58,605.98,0.30259212]
[1745575700187,1.4226042,608.57,605.98,0.30259212]
[1745575700389,2.59332803,608.56,605.98,0.30259212]
[1745575700590,1.4226042,608.55,605.98,0.30259212]
[1745575700890,2.59332803,608.54,605.98,0.30259212]
[1745575701089,1.4226042,608.53,605.98,0.30259212]
[1745575701391,1.4226042,608.52,605.98,0.30259212]
[1745575701588,2.59332803,608.51,605.98,0.30259212]
[1745575701891,1.4226042,608.5,605.98,0.30259212]
[1745575702088,1.17072383,608.51,605.98,0.30259212]
[1745575702089,2.59332803,608.49,605.98,0.30259212]
[1745575702288,1.4226042,608.48,605.98,0.30259212]
[1745575702489,1.4226042,608.47,606.05,1.04543387]
[1745575702688,1.4226042,608.46,606.06,0.30259212]
[1745575702890,2.59332803,608.45,606.06,0.30259212]
[1745575703090,1.4226042,608.44,606.06,0.30259212]
[1745575703290,1.4226042,608.43,606.06,0.30259212]
[1745575703492,2.59332803,608.42,606.06,0.30259212]
[1745575703694,2.59332803,608.41,606.06,0.30259212]
[1745575703893,1.4226042,608.4,606.06,0.30259212]
[1745575704096,1.4226042,608.39,606.06,0.30259212]
[1745575704296,1.4226042,608.38,606.06,0.30259212]
[1745575704494,2.59332803,608.37,606.06,0.30259212]
[1745575704697,1.4226042,608.36,606.06,0.30259212]
[1745575704997,2.59332803,608.35,606.06,0.30259212]
[1745575705198,1.4226042,608.34,606.17,1.04543387]
[1745575705497,2.59332803,608.33,606.18,0.30259212]
[1745575705698,2.59332803,608.32,606.18,0.30259212]
[1745575705892,1.4226042,608.31,606.18,0.30259212]
[1745575706096,1.17072383,608.32,606.18,0.30259212]
[1745575706097,1.4226042,608.3,606.18,0.30259212]
[1745575706299,1.4226042,608.29,606.18,0.30259212]
[1745575706492,1.4226042,608.28,606.18,0.30259212]
[1745575706693,1.4226042,608.27,606.18,0.30259212]
[1745575706894,1.4226042,608.26,606.18,0.30259212]
[1745575707197,1.4226042,608.25,606.18,0.30259212]
[1745575707398,1.4226042,608.24,606.18,0.30259212]
[1745575707701,0.28657542,608.43,606.22,1.04543387]
[1745575707898,0.28657542,608.43,606.23,0.30258501]
[1745575709001,2.59416353,608.42,606.23,0.30258501]
[1745575709201,1.42080287,608.41,606.23,0.30258501]
[1745575709398,1.42080287,608.4,606.23,0.30258501]
[1745575709595,1.42080287,608.39,606.23,0.30258501]
[1745575709801,1.42080287,608.38,606.23,0.30258501]
[1745575710097,1.42080287,608.37,606.23,0.30258501]
[1745575710298,1.42080287,608.36,606.23,0.30258501]
[1745575710499,1.42080287,608.35,606.22,1.04543387]
[1745575710701,1.42080287,608.34,606.23,0.30264792]
[1745575710894,1.42080287,608.33,606.22,1.04543387]
[1745575711095,1.42080287,608.32,606.23,0.30266432]
[1745575711298,2.59416353,608.31,606.23,0.30266432]
[1745575711496,1.42080287,608.3,606.23,0.30266432]
[1745575711696,1.42080287,608.29,606.23,0.30266432]
[1745575711898,1.42080287,608.28,606.23,0.30266432]
[1745575712099,1.42080287,608.27,606.23,0.30266432]
[1745575712399,1.42080287,608.26,606.23,0.30266432]
[1745575712599,2.59416353,608.25,606.23,0.30266432]
[1745575712797,1.42080287,608.24,606.23,0.30266432]
[1745575712999,1.42080287,608.23,606.23,0.30266432]
[1745575713195,2.59416353,608.22,606.23,0.30266432]
[1745575713501,1.42080287,608.21,606.22,1.04543387]
[1745575713700,2.59416353,608.2,606.22,1.04543387]
[1745575713901,1.42080287,608.19,606.22,1.04543387]
[1745575714102,1.42080287,608.18,606.23,0.30269488]
[1745575714296,1.42080287,608.17,606.23,0.30269488]
[1745575714500,2.59416353,608.16,606.22,1.04543387]
[1745575714701,1.42080287,608.15,606.22,1.04543387]
[1745575714900,1.42080287,608.14,606.22,1.04543387]
[1745575715101,2.59416353,608.13,606.22,1.04543387]
[1745575715297,1.42024909,608.12,606.22,1.04543387]
[1745575715497,2.59360975,608.11,606.22,1.04543387]
[1745575715701,1.42024909,608.1,606.22,1.04543387]
[1745575715899,1.42024909,608.09,606.22,1.04543387]
[1745575716101,2.59360975,608.08,606.16,0.28666041]
[1745575716404,1.42024909,608.07,606.17,0.30271211]
[1745575716606,1.42024909,608.06,606.18,0.30271212]